fUST/lending_fUST_20250109
["ID","MTS","AMOUNT","RATE_DAILY","PERIOD"]
[348154769,1736358639847,-500.0,0.00019178,2]
[348154771,1736358639857,-500.0,0.00019178,2]
[348154773,1736358639868,-500.0,0.00019178,2]
[348154775,1736358639880,-500.0,0.00019178,2]
[348154777,1736358639889,-500.0,0.00019178,2]
[348154779,1736358639899,-500.0,0.00019178,2]
[348154781,1736358639908,-500.0,0.00019178,2]
[348154783,1736358639918,-500.0,0.00019178,2]
[348154785,1736358639927,-500.0,0.00019178,2]
[348154787,1736358639937,-500.0,0.00019178,2]
[348154789,1736358639947,-500.0,0.00019178,2]
[348154791,1736358639957,-500.0,0.00019178,2]
[348154793,1736358639966,-500.0,0.00019178,2]
[348154795,1736358639976,-500.0,0.00019178,2]
[348154797,1736358639986,-500.0,0.00019178,2]
[348154799,1736358639995,-500.0,0.00019178,2]
[348154801,1736358640005,-500.0,0.00019178,2]
[348154803,1736358640014,-425.6,0.00019178,2]
[348154806,1736358640024,-500.0,0.00019178,2]
[348154808,1736358640033,-500.0,0.00019178,2]
[348154809,1736358640043,-500.0,0.00019178,2]
[348154810,1736358640053,-500.0,0.00019178,2]
[348154811,1736358640063,-500.0,0.00019178,2]
[348154812,1736358640073,-500.0,0.00019178,2]
[348154813,1736358640082,-1075.22,0.00019178,2]
[348154814,1736358640091,-500.0,0.00019178,2]
[348154816,1736358640101,-500.0,0.00019178,2]
[348154817,1736358640111,-500.0,0.00019178,2]
[348154818,1736358640120,-504.62763379,0.00019178,2]
[348154819,1736358640131,-500.0,0.00019178,2]
[348154820,1736358640141,-500.0,0.00019178,2]
[348154821,1736358640151,-345.03588468,0.00019178,2]
[348154822,1736358640162,-500.0,0.00019178,2]
[348154823,1736358640172,-500.0,0.00019178,2]
[348154824,1736358640182,-500.0,0.00019178,2]
[348154825,1736358640191,-500.0,0.00019178,2]
[348154826,1736358640201,-500.0,0.00019178,2]
[348154827,1736358640211,-500.0,0.00019178,2]
[348154828,1736358640221,-500.0,0.00019178,2]
[348154829,1736358640231,-500.0,0.00019178,2]
[348154830,1736358640241,-500.0,0.00019178,2]
[348154831,1736358640250,-500.0,0.00019178,2]
[348154832,1736358640260,-382.8703344,0.00019178,2]
[348154833,1736358640270,-500.0,0.00019178,2]
[348154834,1736358640280,-500.0,0.00019178,2]
[348154835,1736358640290,-500.0,0.00019178,2]
[348154836,1736358640299,-500.0,0.00019178,2]
[348154837,1736358640308,-500.0,0.00019178,2]
[348154838,1736358640318,-500.0,0.00019178,2]
[348154839,1736358640328,-500.0,0.00019178,2]
[348154841,1736358640337,-638.41443835,0.00019178,2]
[348154843,1736358640348,-500.0,0.00019178,2]
[348154845,1736358640358,-529.87530079,0.00019178,2]
[348154847,1736358640367,-500.0,0.00019178,2]
[348154849,1736358640380,-500.0,0.00019178,2]
[348154850,1736358640390,-500.0,0.00019178,2]
[348154852,1736358640399,-500.0,0.00019178,2]
[348154854,1736358640408,-500.0,0.00019178,2]
[348154856,1736358640418,-500.0,0.00019178,2]
[348154857,1736358640427,-500.0,0.00019178,2]
[348154859,1736358640437,-500.0,0.00019178,2]
[348154861,1736358640447,-504.24198776,0.00019178,2]
[348154863,1736358640456,-500.0,0.00019178,2]
[348154865,1736358640466,-602.17,0.00019178,2]
[348154867,1736358640475,-500.0,0.00019178,2]
[348154869,1736358640486,-500.0,0.00019178,2]
[348154871,1736358640495,-500.0,0.00019178,2]
[348154873,1736358640505,-500.0,0.00019178,2]
[348154875,1736358640514,-500.0,0.00019178,2]
[348154877,1736358640523,-500.0,0.00019178,2]
[348154879,1736358640533,-500.0,0.00019178,2]
[348154881,1736358640543,-649.32,0.00019178,2]
[348154883,1736358640552,-500.0,0.00019178,2]
[348154885,1736358640562,-500.0,0.00019178,2]
[348154887,1736358640571,-500.0,0.00019178,2]
[348154889,1736358640581,-500.0,0.00019178,2]
[348154891,1736358640590,-500.0,0.00019178,2]
[348154893,1736358640600,-500.0,0.00019178,2]
[348154895,1736358640609,-500.0,0.00019178,2]
[348154897,1736358640618,-500.0,0.00019178,2]
[348154899,1736358640629,-500.0,0.00019178,2]
[348154901,1736358640639,-500.0,0.00019178,2]
[348154903,1736358640648,-500.0,0.00019178,2]
[348154905,1736358640657,-500.0,0.00019178,2]
[348154907,1736358640667,-500.0,0.00019178,2]
[348154909,1736358640676,-500.0,0.00019178,2]
[348154911,1736358640686,-500.0,0.00019178,2]
[348154913,1736358640695,-500.0,0.00019178,2]
[348154915,1736358640704,-500.0,0.00019178,2]
[348154917,1736358640714,-500.0,0.00019178,2]
[348154919,1736358640723,-500.0,0.00019178,2]
[348154921,1736358640733,-587.77,0.00019178,2]
[348154923,1736358640742,-500.0,0.00019178,2]
[348154925,1736358640752,-626.63080272,0.00019178,2]
[348154926,1736358640760,-500.0,0.00019178,2]
[348154927,1736358640770,-500.0,0.00019178,2]
[348154928,1736358640779,-500.0,0.00019178,2]
[348154929,1736358640791,-500.0,0.00019178,2]
[348154930,1736358640800,-500.0,0.00019178,2]
[348154931,1736358640810,-150.26331925,0.00019178,2]
[348154932,1736358640819,-1043.47,0.00019178,2]
[348154933,1736358640829,-500.0,0.00019178,2]
[348154934,1736358640839,-620.52,0.00019178,2]
[348154935,1736358640848,-481.0,0.00019178,2]
[348154936,1736358640859,-500.0,0.00019178,2]
[348154937,1736358640870,-500.0,0.00019178,2]
[348154938,1736358640880,-500.0,0.00019178,2]
[348154939,1736358640889,-500.0,0.00019178,2]
[348154940,1736358640898,-500.0,0.00019178,2]
[348154941,1736358640908,-500.0,0.00019178,2]
[348154942,1736358640917,-500.0,0.00019178,2]
[348154943,1736358640927,-500.0,0.00019178,2]
[348154944,1736358640937,-500.0,0.00019178,2]
[348154945,1736358640947,-251.82805172,0.00019178,2]
[348154946,1736358640956,-500.0,0.00019178,2]
[348154948,1736358640965,-500.0,0.00019178,2]
[348154949,1736358640975,-500.0,0.00019178,2]
[348154951,1736358640984,-500.0,0.00019178,2]
[348154953,1736358640993,-500.0,0.00019178,2]
[348154955,1736358641003,-500.0,0.00019178,2]
[348154957,1736358641013,-500.0,0.00019178,2]
[348154959,1736358641022,-500.0,0.00019178,2]
[348154962,1736358641034,-500.0,0.00019178,2]
[348154964,1736358641044,-500.0,0.00019178,2]
[348154966,1736358641056,-500.0,0.00019178,2]
[348154968,1736358641065,-500.0,0.00019178,2]
[348154970,1736358641075,-391.28372359,0.00019178,2]
[348154972,1736358641084,-500.0,0.00019178,2]
[348154974,1736358641095,-500.0,0.00019178,2]
[348154976,1736358641105,-500.0,0.00019178,2]
[348154978,1736358641114,-500.0,0.00019178,2]
[348154980,1736358641124,-500.0,0.00019178,2]
[348154982,1736358641136,-500.0,0.00019178,2]
[348154984,1736358641145,-5454.65,0.00019178,2]
[348154986,1736358641154,-500.0,0.00019178,2]
[348154988,1736358641164,-500.0,0.00019178,2]
[348154990,1736358641173,-500.0,0.00019178,2]
[348154992,1736358641183,-500.0,0.00019178,2]
[348154994,1736358641193,-500.0,0.00019178,2]
[348154996,1736358641202,-500.0,0.00019178,2]
[348154998,1736358641211,-500.0,0.00019178,2]
[348155000,1736358641221,-500.0,0.00019178,2]
[348155002,1736358641231,-500.0,0.00019178,2]
[348155004,1736358641240,-1000.0,0.00019178,7]
[348155006,1736358641250,-500.0,0.00019178,2]
[348155008,1736358641259,-500.0,0.00019178,2]
[348155010,1736358641268,-500.0,0.00019178,2]
[348155012,1736358641278,-500.0,0.00019178,2]
[348155014,1736358641287,-500.0,0.00019178,2]
[348155016,1736358641296,-500.0,0.00019178,2]
[348155018,1736358641307,-500.0,0.00019178,2]
[348155020,1736358641317,-500.0,0.00019178,2]
[348155022,1736358641327,-500.0,0.00019178,2]
[348155024,1736358641337,-500.0,0.00019178,2]
[348155026,1736358641346,-500.0,0.00019178,2]
[348155028,1736358641356,-500.0,0.00019178,2]
[348155030,1736358641365,-500.0,0.00019178,2]
[348155043,1736358641475,-500.0,0.00019178,2]
[348155045,1736358641496,-500.0,0.00019178,2]
[348155047,1736358641505,-504.96294223,0.00019178,2]
[348155049,1736358641515,-500.0,0.00019178,2]
[348155051,1736358641524,-500.0,0.00019178,2]
[348155053,1736358641534,-500.0,0.00019178,2]
[348155055,1736358641543,-500.0,0.00019178,2]
[348155057,1736358641553,-500.0,0.00019178,2]
[348155059,1736358641563,-500.0,0.00019178,2]
[348155061,1736358641573,-500.0,0.00019178,2]
[348155063,1736358641583,-500.0,0.00019178,2]
[348155065,1736358641592,-500.0,0.00019178,2]
[348155067,1736358641602,-500.0,0.00019178,2]
[348155069,1736358641611,-500.0,0.00019178,2]
[348155071,1736358641620,-500.0,0.00019178,2]
[348155073,1736358641630,-500.0,0.00019178,2]
[348155075,1736358641639,-500.0,0.00019178,2]
[348155077,1736358641649,-154.88,0.00019178,2]
[348155079,1736358641658,-500.57307542,0.00019452,3]
[348155081,1736358641668,-500.0,0.00019452,3]
[348155083,1736358641677,-500.0,0.00019452,3]
[348155085,1736358641686,-500.49355234,0.00019452,3]
[348155087,1736358641695,-500.0,0.00019452,3]
[348155089,1736358641705,-500.0,0.00019452,3]
[348155091,1736358641714,-617.29,0.00019452,3]
[348155093,1736358641724,-500.0,0.00019452,3]
[348155095,1736358641733,-500.0,0.00019452,3]
[348155097,1736358641742,-500.0,0.00019452,3]
[348155099,1736358641752,-175.5620233,0.00019452,3]
[348155101,1736358641761,-721.77,0.00019452,3]
[348155103,1736358641770,-500.0,0.00019452,3]
[348155105,1736358641780,-500.0,0.00019452,3]
[348155107,1736358641793,-226.5963071,0.00019452,3]
[348155109,1736358641802,-500.0,0.00019452,3]
[348155111,1736358641811,-255.06913389,0.00019452,3]
[348155113,1736358641820,-500.0,0.00019452,3]
[348155115,1736358641830,-503.47725766,0.00019452,3]
[348155117,1736358641840,-1075.22,0.00019452,3]
[348155119,1736358641849,-500.0,0.00019452,3]
[348155121,1736358641859,-500.0,0.00019452,3]
[348155123,1736358641870,-500.0,0.00019452,3]
[348155125,1736358641882,-500.0,0.00019452,3]
[348155127,1736358641892,-500.0,0.00019452,3]
[348155129,1736358641901,-500.0,0.00019452,3]
[348155131,1736358641910,-637.83,0.00019452,3]
[348155133,1736358641919,-567.27577382,0.00019452,3]
[348155135,1736358641929,-592.29,0.00019452,3]
[348155137,1736358641939,-500.0,0.00019452,3]
[348155139,1736358641948,-602.17,0.00019452,3]
[348155141,1736358641959,-500.0,0.00019452,3]
[348155143,1736358641971,-500.0,0.00019452,3]
[348155145,1736358641981,-500.0,0.00019452,3]
[348155147,1736358641994,-507.3,0.00019452,3]
[348155149,1736358642004,-500.0,0.00019452,3]
[348155151,1736358642014,-500.0,0.00019452,3]
[348155153,1736358642024,-500.0,0.00019452,3]
[348155155,1736358642033,-500.0,0.00019452,3]
[348155157,1736358642042,-500.0,0.00019452,2]
[348155159,1736358642052,-500.0,0.00019452,3]
[348155161,1736358642062,-500.0,0.00019452,3]
[348155163,1736358642072,-500.0,0.00019452,3]
[348155165,1736358642081,-500.0,0.00019452,3]
[348155167,1736358642091,-591.29,0.00019452,3]
[348155169,1736358642100,-500.0,0.00019452,3]
[348155171,1736358642109,-500.0,0.00019452,3]
[348155173,1736358642119,-500.0,0.00019452,3]
[348155175,1736358642130,-500.0,0.00019452,3]
[348155177,1736358642140,-1043.47,0.00019452,3]
[348155179,1736358642149,-500.0,0.00019452,3]
[348155181,1736358642159,-500.0,0.00019452,3]
[348155183,1736358642169,-535.52,0.00019452,3]
[348155185,1736358642179,-500.0,0.00019452,3]
[348155187,1736358642188,-500.0,0.00019452,3]
[348155189,1736358642198,-500.0,0.00019452,3]
[348155191,1736358642209,-500.0,0.00019452,3]
[348155193,1736358642219,-500.0,0.00019452,3]
[348155195,1736358642228,-500.0,0.00019452,3]
[348155197,1736358642238,-500.0,0.00019452,3]
[348155199,1736358642247,-500.0,0.00019452,3]
[348155201,1736358642256,-500.0,0.00019452,3]
[348155203,1736358642266,-500.0,0.00019452,3]
[348155205,1736358642275,-500.0,0.00019452,3]
[348155207,1736358642284,-500.0,0.00019452,3]
[348155209,1736358642294,-5454.65,0.00019452,3]
[348155211,1736358642304,-500.0,0.00019452,3]
[348155213,1736358642314,-587.07,0.00019452,3]
[348155215,1736358642324,-500.0,0.00019452,3]
[348155217,1736358642333,-500.0,0.00019452,3]
[348155219,1736358642343,-405.40180158,0.00019452,3]
[348155221,1736358642352,-500.0,0.00019452,3]
[348155223,1736358642362,-500.0,0.00019452,3]
[348155225,1736358642372,-500.0,0.00019452,3]
[348155227,1736358642383,-500.0,0.00019452,3]
[348155229,1736358642393,-500.0,0.00019452,3]
[348155231,1736358642402,-500.0,0.00019452,3]
[348155233,1736358642412,-500.0,0.00019452,3]
[348155235,1736358642422,-504.20451042,0.00019452,3]
[348155237,1736358642431,-500.0,0.00019452,3]
[348155239,1736358642440,-534.12,0.00019452,3]
[348155241,1736358642450,-500.0,0.00019452,3]
[348155243,1736358642459,-500.0,0.00019452,3]
[348155245,1736358642469,-382.74070476,0.00019452,3]
[348155247,1736358642478,-500.0,0.00019452,3]
[348155249,1736358642488,-500.0,0.00019452,3]
[348155251,1736358642498,-374.44962081,0.00019625,2]
[348155253,1736358642509,-17225.85008633,0.00019626,2]
[348155262,1736358642588,-15411.380337,0.00019626,2]
[348155264,1736358642598,-364.9377508,0.00019721,2]
[348155266,1736358642606,-439.88,0.00019726,3]
[348155268,1736358642616,-500.0,0.00019726,3]
[348155270,1736358642625,-721.77,0.00019726,3]
[348155272,1736358642639,-298.24,0.00019726,3]
[348155274,1736358642650,-500.0,0.00019726,3]
[348155276,1736358642658,-477.96691218,0.00019726,3]
[348155278,1736358642670,-597.25308782,0.00019726,3]
[348155281,1736358642680,-500.0,0.00019726,3]
[348155283,1736358642689,-602.17,0.00019726,3]
[348155284,1736358642700,-500.0,0.00019726,3]
[348155287,1736358642709,-500.0,0.00019726,3]
[348155289,1736358642719,-500.0,0.00019726,3]
[348155291,1736358642728,-500.0,0.00019726,3]
[348155293,1736358642738,-478.2,0.00019726,3]
[348155295,1736358642748,-615.09183309,0.00019726,3]
[348155297,1736358642757,-155.89,0.00019726,3]
[348155299,1736358642767,-500.0,0.00019726,3]
[348155301,1736358642777,-1043.47,0.00019726,3]
[348155303,1736358642787,-500.0,0.00019726,3]
[348155305,1736358642800,-500.0,0.00019726,3]
[348155307,1736358642810,-500.0,0.00019726,3]
[348155309,1736358642819,-500.0,0.00019726,3]
[348155311,1736358642828,-151.97,0.00019726,3]
[348155313,1736358642838,-500.0,0.00019726,3]
[348155315,1736358642848,-212.83,0.00019726,3]
[348155318,1736358642857,-277.24863287,0.00019726,3]
[348155322,1736358642870,-5177.40136713,0.00019726,3]
[348155325,1736358642883,-500.0,0.00019726,3]
[348155327,1736358642892,-500.0,0.00019726,3]
[348155331,1736358642903,-500.0,0.00019726,3]
[348155334,1736358642912,-500.0,0.00019726,3]
[348155337,1736358642922,-500.0,0.00019726,3]
[348155341,1736358642932,-500.0,0.00019726,3]
[348155343,1736358642941,-500.0,0.00019726,3]
[348155347,1736358642951,-500.0,0.00019726,3]
[348155349,1736358642960,-276.4619942,0.00019863,7]
[348155353,1736358642972,-334.6280058,0.00019863,7]
[348155356,1736358642982,-208.8332012,0.000199,2]
[348155360,1736358642991,-8345.0,0.0002,3]
[348155363,1736358643001,-3006.7116301,0.0002,3]
[348155367,1736358643013,-5336.2883699,0.0002,3]
[348155370,1736358643023,-7061.32379735,0.0002,3]
[348155373,1736358643035,-1281.67620265,0.0002,3]
[348155376,1736358643045,-8343.0,0.0002,3]
[348155380,1736358643054,-8343.0,0.0002,3]
[348155384,1736358643065,-4666.40199927,0.0002,3]
[348155389,1736358643077,-677.41019514,0.0002,3]
[348155394,1736358643089,-2999.18780559,0.0002,3]
[348155399,1736358643098,-500.0,0.0002,3]
[348155402,1736358643108,-721.77,0.0002,3]
[348155404,1736358643118,-500.0,0.0002,3]
[348155406,1736358643127,-436.87977909,0.0002,3]
[348155408,1736358643140,-638.34022091,0.0002,3]
[348155410,1736358643149,-151.45403192,0.0002,2]
[348155412,1736358643159,-9021.34933122,0.0002,2]
[348155414,1736358643168,-309.82,0.0002,3]
[348155415,1736358643177,-602.17,0.0002,3]
[348155418,1736358643186,-500.0,0.0002,3]
[348155421,1736358643196,-500.0,0.0002,3]
[348155424,1736358643205,-500.0,0.0002,3]
[348155428,1736358643215,-500.0,0.0002,3]
[348155431,1736358643226,-1043.47,0.0002,3]
[348155434,1736358643236,-500.0,0.0002,3]
[348155435,1736358643245,-500.0,0.0002,3]
[348155437,1736358643255,-500.0,0.0002,3]
[348155440,1736358643266,-500.0,0.0002,3]
[348155442,1736358643276,-500.0,0.0002,3]
[348155444,1736358643285,-5454.65,0.0002,3]
[348155446,1736358643294,-500.0,0.0002,3]
[348155448,1736358643304,-500.0,0.0002,3]
[348155450,1736358643314,-500.0,0.0002,3]
[348155452,1736358643323,-500.0,0.0002,3]
[348155454,1736358643332,-500.0,0.0002,3]
[348155456,1736358643342,-500.0,0.0002,3]
[348155458,1736358643351,-500.0,0.0002,3]
[348155460,1736358643361,-500.0,0.0002,3]
[348155462,1736358643371,-208.83320112,0.00020122,2]
[348155464,1736358643383,-500.0,0.00020273,3]
[348155465,1736358643394,-721.77,0.00020273,3]
[348155467,1736358643403,-500.0,0.00020273,3]
[348155469,1736358643413,-1075.22,0.00020273,3]
[348155472,1736358643423,-602.17,0.00020273,3]
[348155474,1736358643433,-500.0,0.00020273,3]
[348155475,1736358643443,-500.0,0.00020273,3]
[348155478,1736358643452,-500.0,0.00020273,3]
[348155480,1736358643463,-500.0,0.00020273,3]
[348155482,1736358643473,-1043.47,0.00020273,3]
[348155484,1736358643483,-500.0,0.00020273,3]
[348155486,1736358643492,-500.0,0.00020273,3]
[348155488,1736358643502,-624.61,0.00020273,3]
[348155490,1736358643512,-325.7209963,0.00020273,3]
[348155492,1736358643522,-500.0,0.00020273,3]
[348155494,1736358643531,-5454.65,0.00020273,3]
[348155496,1736358643541,-500.0,0.00020273,3]
[348155498,1736358643551,-500.0,0.00020273,3]
[348155500,1736358643560,-500.0,0.00020273,3]
[348155502,1736358643569,-500.0,0.00020273,3]
[348155504,1736358643579,-500.0,0.00020273,3]
[348155506,1736358643590,-500.0,0.00020273,3]
[348155508,1736358643601,-500.0,0.00020273,3]
[348155510,1736358643611,-500.0,0.00020273,3]
[348155512,1736358643621,-208.83320112,0.00020344,2]
[348155514,1736358643636,-1500.0,0.000204,2]
[348155516,1736358643646,-500.0,0.00020547,3]
[348155518,1736358643655,-343.21993341,0.00020547,3]
[348155520,1736358643668,-378.55006659,0.00020547,3]
[348155522,1736358643678,-500.0,0.00020547,3]
[348155524,1736358643687,-1075.22,0.00020547,3]
[348155526,1736358643697,-602.17,0.00020547,3]
[348155530,1736358643706,-500.0,0.00020547,3]
[348155533,1736358643717,-500.0,0.00020547,3]
[348155536,1736358643727,-501.40131937,0.00020547,3]
[348155538,1736358643736,-249.4,0.00020547,3]
[348155548,1736358643827,-1043.47,0.00020547,3]
[348155550,1736358643837,-500.0,0.00020547,3]
[348155552,1736358643845,-500.0,0.00020547,3]
[348155554,1736358643855,-500.0,0.00020547,3]
[348155556,1736358643866,-2453.51975047,0.00020547,3]
[348155559,1736358643882,-3001.13024953,0.00020547,3]
[348155560,1736358643891,-500.0,0.00020547,3]
[348155562,1736358643901,-500.0,0.00020547,3]
[348155565,1736358643910,-500.0,0.00020547,3]
[348155567,1736358643920,-500.0,0.00020547,3]
[348155569,1736358643930,-233.34931087,0.00020547,3]
[348155571,1736358643939,-500.0,0.00020547,3]
[348155573,1736358643949,-500.0,0.00020547,3]
[348155575,1736358643958,-500.0,0.00020547,3]
[348155577,1736358643968,-208.83320112,0.00020567,2]
[348155579,1736358643978,-208.83320112,0.00020789,2]
[348155581,1736358643987,-500.0,0.00020821,3]
[348155583,1736358643996,-721.77,0.00020821,3]
[348155585,1736358644005,-500.0,0.00020821,3]
[348155587,1736358644014,-1075.22,0.00020821,3]
[348155589,1736358644024,-602.17,0.00020821,3]
[348155591,1736358644033,-500.0,0.00020821,3]
[348155593,1736358644042,-500.0,0.00020821,3]
[348155595,1736358644053,-1043.47,0.00020821,3]
[348155597,1736358644063,-500.0,0.00020821,3]
[348155598,1736358644072,-496.41,0.00020821,3]
[348155601,1736358644082,-500.0,0.00020821,3]
[348155602,1736358644092,-5454.65,0.00020821,3]
[348155604,1736358644101,-500.0,0.00020821,3]
[348155606,1736358644109,-500.0,0.00020821,3]
[348155608,1736358644119,-500.0,0.00020821,3]
[348155610,1736358644129,-229.94250672,0.00020821,3]
[348155612,1736358644139,-500.0,0.00020821,3]
[348155614,1736358644148,-500.0,0.00020821,3]
[348155616,1736358644157,-500.0,0.00020821,3]
[348155618,1736358644167,-420.0,0.00020898,2]
[348155620,1736358644177,-208.83320112,0.00021011,2]
[348155622,1736358644186,-721.77,0.00021095,3]
[348155624,1736358644196,-500.0,0.00021095,3]
[348155626,1736358644205,-382.93000718,0.00021095,3]
[348155629,1736358644219,-692.28999282,0.00021095,3]
[348155631,1736358644229,-602.17,0.00021095,3]
[348155632,1736358644238,-500.0,0.00021095,3]
[348155634,1736358644248,-616.31,0.00021095,3]
[348155637,1736358644258,-1043.47,0.00021095,3]
[348155639,1736358644267,-99.70344671,0.00021095,3]
[348155641,1736358644279,-400.29655329,0.00021095,3]
[348155643,1736358644289,-384.40794671,0.00021095,3]
[348155645,1736358644301,-115.59205329,0.00021095,3]
[348155647,1736358644311,-1430.47220751,0.00021095,3]
[348155649,1736358644325,-384.47543081,0.00021095,3]
[348155652,1736358644336,-3639.70236168,0.00021095,3]
[348155654,1736358644346,-500.0,0.00021095,3]
[348155656,1736358644356,-500.0,0.00021095,3]
[348155658,1736358644365,-500.0,0.00021095,3]
[348155660,1736358644374,-500.0,0.00021095,3]
[348155662,1736358644387,-500.0,0.00021095,3]
[348155663,1736358644398,-500.0,0.00021095,3]
[348155666,1736358644408,-166.638,0.00021164,2]
[348155668,1736358644417,-151.0,0.000212,3]
[348155669,1736358644427,-208.83320112,0.00021233,2]
[348155672,1736358644437,-721.77,0.00021369,3]
[348155674,1736358644447,-500.0,0.00021369,3]
[348155676,1736358644457,-1075.22,0.00021369,3]
[348155677,1736358644466,-602.17,0.00021369,3]
[348155679,1736358644476,-165.9012372,0.00021369,3]
[348155682,1736358644488,-334.0987628,0.00021369,3]
[348155684,1736358644498,-667.7408604,0.00021369,3]
[348155954,1736358646604,-500.0,0.00019178,2]
[348155956,1736358646613,-500.0,0.00019178,2]
[348155958,1736358646623,-375.7291396,0.00021369,3]
[348155960,1736358646634,-500.0,0.00021369,3]
[348155962,1736358646644,-173.49252736,0.00021369,3]
[348155964,1736358646653,-1469.77845958,0.00021369,3]
[348155966,1736358646664,-3984.87154042,0.00021369,3]
[348155968,1736358646674,-500.0,0.00021369,3]
[348155970,1736358646683,-500.0,0.00021369,3]
[348155972,1736358646692,-183.17,0.00021369,3]
[348155974,1736358646702,-500.0,0.00021369,3]
[348155976,1736358646711,-500.0,0.00021369,3]
[348155978,1736358646720,-500.0,0.00021369,3]
[348155980,1736358646729,-394.0,0.00021445,2]
[348155982,1736358646738,-208.83320112,0.00021456,2]
[348155984,1736358646748,-151.0,0.000216,4]
[348155986,1736358646757,-721.77,0.00021643,3]
[348155988,1736358646766,-500.0,0.00021643,3]
[348155990,1736358646776,-1075.22,0.00021643,3]
[348155992,1736358646785,-602.17,0.00021643,3]
[348155994,1736358646795,-1043.47,0.00021643,3]
[348155995,1736358646805,-500.0,0.00021643,3]
[348155998,1736358646814,-215.5288175,0.00021643,3]
[348156000,1736358646826,-5239.1211825,0.00021643,3]
[348156002,1736358646838,-286.35,0.00021643,3]
[348156004,1736358646847,-500.0,0.00021643,3]
[348156006,1736358646856,-345.49,0.00021643,3]
[348156008,1736358646867,-500.0,0.00021643,3]
[348156010,1736358646876,-318.35941813,0.00021643,3]
[348156012,1736358646890,-208.83320112,0.00021678,2]
[348156014,1736358646900,-208.83320112,0.000219,2]
[348156016,1736358646909,-721.77,0.00021917,3]
[348156018,1736358646918,-500.0,0.00021917,3]
[348156020,1736358646927,-1075.22,0.00021917,3]
[348156022,1736358646937,-602.17,0.00021917,3]
[348156024,1736358646947,-1043.47,0.00021917,3]
[348156026,1736358646956,-500.0,0.00021917,3]
[348156028,1736358646965,-5454.65,0.00021917,3]
[348156030,1736358646975,-500.0,0.00021917,3]
[348156032,1736358646984,-196.03,0.00021917,3]
[348156034,1736358646993,-151.0,0.00022,4]
[348156036,1736358647002,-604.586,0.0002204,2]
[348156038,1736358647011,-208.83320112,0.00022122,2]
[348156040,1736358647020,-478.05500604,0.00022136,2]
[348156042,1736358647030,-721.77,0.00022191,3]
[348156044,1736358647039,-500.0,0.00022191,3]
[348156046,1736358647049,-1075.22,0.00022191,3]
[348156048,1736358647061,-602.17,0.00022191,3]
[348156050,1736358647070,-1043.47,0.00022191,3]
[348156052,1736358647080,-500.0,0.00022191,3]
[348156054,1736358647090,-5454.65,0.00022191,3]
[348156056,1736358647099,-500.0,0.00022191,3]
[348156058,1736358647109,-208.83320112,0.00022344,2]
[348156060,1736358647118,-153.7772247,0.00022384,2]